[Event "European Women Blitz-ch 2024"]
[Site "Monaco"]
[Date "2025.01.10"]
[Round "3.8"]
[White "Batsiashvili, Nino"]
[Black "Roebers, Eline"]
[Result "0-1"]
[Annotator "TA"]
[ECO "A80"]
[WhiteElo "2476"]
[BlackElo "2381"]
[PlyCount "79"]
[EventDate "2025.01.06"]
[EventType "swiss"]
[EventCountry "MNC"]
[SourceTitle "playchess.com"]
[Source "ChessBase"]
[SourceQuality "1"]
[TimeControl "180+2"]

{[%evp 9,79,25,10,11,23,21,14,10,56,28,82,-37,-30,-145,-149,-157,-51,-44,-37,-136,-145,-125,-140,-187,-202,-203,-202,-246,-219,-376,-398,-390,-404,-403,-205,-183,-200,-239,-211,-212,-193,-343,-188,-304,-279,-579,-538,-553,-547,-516,-505,-532,-434,-510,-509,-509,-489,-632,-470,-850,-837,-1073,-1021,-1098,-1059,-1794,-1145,-991,-837,-5605,-5689,-1918]} 1. d4 {[%emt 0:00:01]} f5 {[%emt 0:00:00]} 2. Bf4 {[%emt 0:00:08]} Nf6 {[%emt 0:00:01]} 3. Nd2 {[%emt 0:00:18]} d6 {[%emt 0:00:03]} 4. c3 {[%emt 0:00:38]} g6 {[%emt 0:00:02]} 5. Qc2 {[%emt 0:00:13]} Bg7 {[%emt 0:00:10]} 6. e4 {[%emt 0:00:01]} Nh5 {[%emt 0:00:08]} 7. Bg5 {[%emt 0:00:07][%cal Bf4g5,Bg5h4,Bh4g3][%mdl 32]} h6 {[%emt 0:00:03]} 8. Bh4 $1 {[%emt 0:00:08]} g5 {[%emt 0:00:03]} (8... O-O $11) 9. Bg3 $1 $14 {[%emt 0:00:09]} f4 {[%emt 0:00:10] [#]} (9... O-O $11) 10. e5 $1 {[%emt 0:00:02]} O-O $15 {[%emt 0:00:06][%cal Od6e5]} 11. Be2 {[%emt 0:00:02]} (11. Bc4+ $11 {remains equal.} d5 12. Be2) 11... Qe8 $1 $17 {[%emt 0:02:38][%cal Od6e5]} 12. Ngf3 {[%emt 0:00:23][%cal Og3h4]} Nc6 {[%emt 0:00:00]} (12... fxg3 $6 13. hxg3 Bf5 14. Qb3+ e6 15. exd6 $15) (12... Bf5 $17 13. Qb3+ e6 14. exd6 (14. Qxb7 $2 Nc6 $19) 14... cxd6 (14... fxg3 15. hxg3 Nf6 16. dxc7 $11)) 13. Bd3 $15 {[%emt 0:00:13]} Be6 {[%emt 0:00:00][%cal Rd6e5]} (13... fxg3 14. hxg3 dxe5 15. Bh7+ (15. Bg6 Qd8 $11) 15... Kh8 16. d5 $14 (16. Bg6 Qd8 $16)) 14. O-O-O {[%emt 0:00:15] [#]} dxe5 $1 $17 {[%emt 0:00:00]} 15. dxe5 {[%emt 0:00:15][%cal Og3h4]} Rd8 {[%emt 0:00:00] Black is more active.} (15... fxg3 $6 16. hxg3 Bd5 (16... Bxe5 $2 17. Rde1 $16) (16... Bxa2 17. b3 $14) 17. Bh7+ Kh8 18. Bg6 $11) 16. Nc4 {[%emt 0:00:17]} (16. Rhe1 $17) 16... Rxd3 {[%emt 0:00:00]} 17. Qxd3 {[%emt 0:00:01]} Qf7 {[%emt 0:00:00]} (17... fxg3 18. hxg3 Qf7 19. b3) 18. Ncd2 {[%emt 0:00:07]} fxg3 {[%emt 0:00:00]} 19. hxg3 $2 {[%emt 0:00:01]} (19. fxg3 {was the only defense.} Bf5 (19... Bxe5 $2 20. Qb5 $19) (19... Bxa2 $2 20. Rhf1 $19) (19... Nxe5 $2 20. Nxe5 Bxe5 21. Rhf1 $19) 20. Qc4) 19... g4 $1 $19 {[%emt 0:00:00]} (19... Bxe5 20. Qe2 Bg4 21. Qe4 Bxf3 22. Qxf3 Qxa2 23. Qe4 (23. Qxh5 $2 Qa1+ 24. Nb1 Rxf2 $19) 23... Rxf2 24. Rxh5 $17) (19... Bxa2 $2 20. b3 $19) (19... Nxe5 20. Nxe5 Bxe5 21. Qe2 $14) 20. Nd4 {[%emt 0:00:03] And now Nxe6 would win.} Nxe5 {[%emt 0:00:00]} (20... Bxe5 $2 21. Nxe6 Qxe6 22. Rxh5 $18) 21. Qe2 {[%emt 0:00:03]} Bf5 {[%emt 0:00:00]} (21... Qxf2 22. Qxf2 Rxf2 23. Ne4 (23. Nxe6 $2 Nxg3 24. Rh2 h5 $19) 23... Nxg3 (23... Rxg2 24. Nxe6 Nxg3 25. Nxg3 $17) 24. Nxf2 Nxh1 25. Rxh1 $17) (21... Bxa2 $142 22. Ne4 Bd5) 22. Nxf5 {[%emt 0:00:05]} Qxf5 {[%emt 0:00:00]} 23. Nc4 {[%emt 0:00:02] [#]} Nxc4 $1 {[%emt 0:00:00]} (23... Qxf2 24. Qxf2 Rxf2 25. Nxe5 Bxe5 26. Rxh5 Bxg3 27. Kb1 $17) 24. Qxc4+ {[%emt 0:00:01]} Kh8 {[%emt 0:00:00]} 25. Rd2 {[%emt 0:00:02]} (25. a3) 25... Nf6 {[%emt 0:00:00]} (25... Bf6 $142 {[%cal Of6g5] And now ...Bg5! would win.} 26. Rc2 Bg5+ 27. Kb1 Rd8) 26. Re2 {[%emt 0:00:02]} (26. Qf4 {was worth a try.} Qe4 27. f3 Qxf4 28. gxf4) 26... h5 {[%emt 0:00:00]} 27. Qf4 $2 {[%emt 0:00:12] Dodges Bh6} (27. f4 gxf3 28. gxf3 Bh6+ (28... Qxf3 $2 29. Rd1 $19) 29. f4) 27... Qg6 {[%emt 0:00:00]} 28. Qe5 {[%emt 0:00:04]} Bh6+ {[%emt 0:00:00]} 29. Re3 {[%emt 0:00:01]} Bxe3+ {[%emt 0:00:00]} 30. Qxe3 {[%emt 0:00:01]} Qf5 {[%emt 0:00:05] Inhibits Qe5.} 31. Qh6+ {[%emt 0:00:02]} Kg8 {[%emt 0:00:01][%cal Of8d8]} 32. Qe3 {[%emt 0:00:04]} Rd8 {[%emt 0:00:02]} 33. Qxe7 {[%emt 0:00:03]} Re8 {[%emt 0:00:01]} 34. Qb4 {[%emt 0:00:02]} (34. Qxc7 $142 Qxf2 35. Qxb7) 34... Qxf2 {[%emt 0:00:05]} 35. Qxb7 {[%emt 0:00:03]} Re2 {[%emt 0:00:09]} 36. Qb3+ {[%emt 0:00:01]} Kg7 {[%emt 0:00:01]} 37. Kb1 {[%emt 0:00:02]} Qf5+ {[%emt 0:00:03]} 38. Ka1 {[%emt 0:00:01]} Qe4 {[%emt 0:00:03] ( -> ...Re1+)} 39. Rb1 {[%emt 0:00:01]} Re1 {[%emt 0:00:02]} 40. Rd1 {[%emt 0:00:08]} 0-1

[Event "European Women Blitz-ch 2024"]
[Site "Monaco"]
[Date "2025.01.10"]
[Round "3.9"]
[White "Gaponenko, Inna"]
[Black "Javakhishvili, Lela"]
[Result "1/2-1/2"]
[Annotator "TA"]
[ECO "B04"]
[WhiteElo "2346"]
[BlackElo "2426"]
[PlyCount "65"]
[EventDate "2025.01.06"]
[EventType "swiss"]
[EventCountry "MNC"]
[SourceTitle "playchess.com"]
[Source "ChessBase"]
[SourceQuality "1"]
[TimeControl "180+2"]

{[%evp 11,65,36,51,43,65,68,74,32,34,12,11,0,0,-6,-9,-20,-6,-35,-18,-228,0,0,0,0,0,0,0,0,-13,-12,-10,-16,0,-12,0,-8,-8,-16,-11,-30,-22,-14,-14,-10,-15,-22,-19,-19,0,0,0,-6,0,0,0,-27]} 1. e4 {[%emt 0:00:01]} Nf6 {[%emt 0:00:01]} 2. e5 {[%emt 0:00:03]} Nd5 {[%emt 0:00:01]} 3. d4 {[%emt 0:00:01]} d6 {[%emt 0:00:02]} 4. Nf3 {[%emt 0:00:02]} dxe5 {[%emt 0:00:01]} 5. Nxe5 {[%emt 0:00:01]} c6 {[%emt 0:00:01]} 6. Be2 {[%emt 0:00:02]} Nd7 {[%emt 0:00:02]} 7. Nf3 {[%emt 0:00:04]} N7f6 {[%emt 0:00:02]} 8. O-O {[%emt 0:00:02]} Bf5 {[%emt 0:00:01]} 9. c4 {[%emt 0:00:23] Repels e6. White is better.} Nb4 {[%emt 0:00:19]} 10. Na3 {[%emt 0:00:13] Inhibits Nc2.} e6 {[%emt 0:00:03]} 11. Bf4 {[%emt 0:00:32]} Be7 {[%emt 0:00:10]} 12. Be5 {[%emt 0:00:31]} O-O {[%emt 0:00:05]} 13. Qb3 {[%emt 0:00:04]} a5 {[%emt 0:00:01]} 14. Nh4 {[%emt 0:00:09]} Be4 {[%emt 0:00:03]} 15. Bf3 $2 {[%emt 0:00:15] [#]} (15. Qe3 $11 {and White is okay.}) 15... h6 $2 {[%emt 0:01:04]} (15... Bd3 $1 $19 {[%cal Rd3f1]} 16. Rfd1 Nd7) 16. Bxe4 $1 $11 {[%emt 0:00:29]} Nxe4 {[%emt 0:00:02]} 17. Nf3 {[%emt 0:00:01]} Ng5 {[%emt 0:00:10]} 18. Nxg5 {[%emt 0:00:08]} Bxg5 {[%emt 0:00:02]} 19. Nc2 {[%emt 0:00:05]} Nxc2 {[%emt 0:00:04]} 20. Qxc2 {[%emt 0:00:01]} Bf6 {[%emt 0:00:02]} 21. Rad1 {[%emt 0:00:06]} a4 {[%emt 0:00:07]} 22. a3 {[%emt 0:00:05]} Qe7 {[%emt 0:00:06]} 23. Rfe1 {[%emt 0:00:03]} Rfd8 {[%emt 0:00:02]} 24. h3 {[%emt 0:00:06]} Rd7 {[%emt 0:00:06]} 25. Rd3 {[%emt 0:00:10]} Rad8 {[%emt 0:00:19]} 26. Red1 {[%emt 0:00:04] The position is equal.} Bxe5 {[%emt 0:00:11]} 27. dxe5 {[%emt 0:00:01][%cal Od3d7]} Rxd3 {[%emt 0:00:02]} 28. Rxd3 {[%emt 0:00:01]} Rxd3 {[%emt 0:00:03]} 29. Qxd3 {[%emt 0:00:01] KQ-KQ} Qc5 {[%emt 0:00:05]} 30. Qd8+ {[%emt 0:00:02]} Kh7 {[%emt 0:00:01]} 31. Qd3+ {[%emt 0:00:01]} Kg8 {[%emt 0:00:16]} 32. Qd8+ {[%emt 0:00:01]} Kh7 {[%emt 0:00:01]} 33. Qd3+ {[%emt 0:00:01] Weighted Error Value: White=0.22 (precise) /Black=0.17 (very precise) .  Loses game:     	White=1     	---        Missed win:     	---       	Black=1      Inaccurate:     	White=2     	---        OK:         	White=6     	Black=14     Strong:       	White=1     	---} 1/2-1/2

[Event "European Women Blitz-ch 2024"]
[Site "Monaco"]
[Date "2025.01.10"]
[Round "3.10"]
[White "Prado Acebo, Ines"]
[Black "Kulon, Klaudia"]
[Result "0-1"]
[Annotator "TA"]
[ECO "D30"]
[WhiteElo "2176"]
[BlackElo "2393"]
[PlyCount "76"]
[EventDate "2025.01.06"]
[EventType "swiss"]
[EventCountry "MNC"]
[SourceTitle "playchess.com"]
[Source "ChessBase"]
[SourceQuality "1"]
[TimeControl "180+2"]

{[%evp 10,76,1,-10,21,0,0,0,0,0,0,0,-6,-14,10,14,23,-36,-29,-82,68,62,76,59,58,62,137,22,14,14,13,-56,0,0,19,22,50,0,79,6,25,0,0,0,0,-20,54,0,0,0,0,0,0,-138,-124,-430,-19,-292,-300,-302,-321,-420,-422,-868,-826,-1163,-1134,-29989,-29990]} 1. d4 {[%emt 0:00:02]} Nf6 {[%emt 0:00:01]} 2. Bg5 {[%emt 0:00:02]} e6 {[%emt 0:00:04]} 3. Nd2 {[%emt 0:00:02]} d5 {[%emt 0:00:01]} 4. e3 {[%emt 0:00:03]} Be7 {[%emt 0:00:02]} 5. Ngf3 {[%emt 0:00:21]} Nbd7 {[%emt 0:00:01]} 6. c4 {[%emt 0:00:08]} c6 {[%emt 0:00:01]} 7. a3 {[%emt 0:00:09]} b6 {[%emt 0:00:10]} 8. Be2 {[%emt 0:00:04]} O-O {[%emt 0:00:02]} 9. O-O {[%emt 0:00:02]} Bb7 {[%emt 0:00:01]} 10. Rc1 {[%emt 0:00:01]} c5 {[%emt 0:00:03]} 11. cxd5 {[%emt 0:02:30]} Nxd5 {[%emt 0:00:07]} 12. Bxe7 {[%emt 0:00:00]} Qxe7 {[%emt 0:00:02]} 13. e4 {[%emt 0:00:00]} (13. dxc5 $11 Nxc5 14. g4) 13... Nf4 $15 {[%emt 0:00:05]} 14. Bb5 {[%emt 0:00:00]} (14. b4 $11) 14... cxd4 {[%emt 0:00:24] Black is more active.} (14... f5 $17 15. Re1 fxe4 16. Nxe4 Nf6) 15. Rc7 $14 {[%emt 0:00:00]} Bc8 {[%emt 0:00:01]} 16. Qa4 {[%emt 0:00:00][%cal Rb5d7]} (16. Nxd4 Qd6 17. Rc4 Ne5 $17) 16... Qd6 {[%emt 0:00:41]} 17. Rc6 {[%emt 0:00:00]} Qb8 {[%emt 0:00:01]} (17... Qe7 $14) 18. Qxd4 {[%emt 0:00:00]} (18. Rxc8 $1 $16 Qxc8 19. Bxd7) 18... a6 {[%emt 0:00:04]} 19. e5 {[%emt 0:00:00]} Ng6 {[%emt 0:00:09]} 20. Bd3 {[%emt 0:00:00]} (20. Rxc8 Rxc8 21. Bxd7 Rd8 $19) (20. Be2 $11) 20... Ndxe5 {[%emt 0:00:08]} (20... Ngxe5 $15 21. Nxe5 Nxe5 22. Rxb6 Qa7) 21. Rxb6 $11 {[%emt 0:00:00]} Nxf3+ {[%emt 0:00:05]} 22. Nxf3 {[%emt 0:00:00]} Qa7 {[%emt 0:00:01]} 23. h4 {[%emt 0:00:00]} (23. Rd1 $14) 23... e5 {[%emt 0:00:03]} 24. Qb4 {[%emt 0:00:07]} (24. Nxe5 $2 Nxe5 25. Be4 Rb8 26. Bxh7+ Kh8 (26... Kxh7 27. Rh6+ gxh6 28. Qxa7 $15) 27. Qxe5 Qxb6 $19) (24. Qd6 $16 {[%cal Od3e4] Hoping for Be4!.} Bb7 25. Ng5 (25. Nxe5 $2 Nxe5 26. Rxb7 Qxb7 $19)) 24... a5 {[%emt 0:00:08]} 25. Qb3 {[%emt 0:00:01][%cal Of3g5]} Be6 {[%emt 0:00:02]} 26. Rxe6 {[%emt 0:00:03]} fxe6 {[%emt 0:00:03]} 27. Qxe6+ {[%emt 0:00:03]} Qf7 {[%emt 0:00:05]} ({Black should play} 27... Kh8 $1 $11) 28. Qc6 {[%emt 0:00:02]} ({White should try} 28. Qxf7+ $1 $14 Kxf7 29. Ng5+ Ke7 30. Nxh7) 28... Rac8 {[%emt 0:00:07]} 29. Qe4 {[%emt 0:00:02][%cal Oh4h5]} Qf4 {[%emt 0:00:15]} 30. Qd5+ {[%emt 0:00:05]} Kh8 {[%emt 0:00:01]} 31. Ng5 {[%emt 0:00:07] [#]} (31. Bxg6 $11 hxg6 32. Nxe5) 31... Rcd8 $1 $17 {[%emt 0:00:12] The board is on fire.} (31... Qxh4 32. Nf7+ Rxf7 33. Qxf7 $14) (31... Nxh4 32. Ne6 Qf7 33. Qe4 $11 (33. Qxe5 $2 Rce8 $17)) 32. Qb3 $2 {[%emt 0:00:12][%mdl 8192]} (32. Qe4 $17 Rd4 (32... Nxh4 33. Qxh7#) (32... Qxh4 33. Ne6 $14) 33. Qxf4 Nxf4 (33... exf4 $2 34. Bxg6 hxg6 35. Ne6 $18) 34. Bb5) 32... Qf6 $2 {[%emt 0:00:13]} ({Stronger than} 32... Qxh4 33. Nf7+ Rxf7 34. Qxf7 $11) (32... Nxh4 $19 33. Ne6 Qg4) 33. Ne6 $2 {[%emt 0:00:00][%mdl 8192] [#]} (33. Nxh7 $11 {and White is okay.} Kxh7 34. h5) 33... Rxd3 $1 $19 {[%emt 0:00:04][%mdl 512]} 34. Qxd3 {[%emt 0:00:01]} Qxe6 {[%emt 0:00:01]} 35. h5 {[%emt 0:00:01]} Nf4 {[%emt 0:00:01][%csl LRd3,LRh5]} 36. Qd1 {[%emt 0:00:02]} (36. Qe4 $142) 36... e4 {[%emt 0:00:02]} 37. Re1 {[%emt 0:00:01]} Qf5 {[%emt 0:00:03][%cal Of4g2] and ...Nxg2! would now be decisive} 38. g3 {[%emt 0:00:02]} Nh3+ {[%emt 0:00:01]} 0-1

[Event "European Women Blitz-ch 2024"]
[Site "Monaco"]
[Date "2025.01.10"]
[Round "3.11"]
[White "Cramling Bellon, Anna"]
[Black "Berezovska, Svetlana"]
[Result "1-0"]
[Annotator "TA"]
[ECO "D37"]
[WhiteElo "2052"]
[BlackElo "1858"]
[PlyCount "76"]
[EventDate "2025.01.06"]
[EventType "swiss"]
[EventCountry "MNC"]
[SourceTitle "playchess.com"]
[Source "ChessBase"]
[SourceQuality "1"]
[TimeControl "180+2"]

{[%evp 9,76,38,27,14,35,20,22,18,19,17,23,33,32,39,34,31,37,0,0,0,0,0,0,0,5,0,0,-11,47,54,123,122,122,122,122,120,115,119,109,117,122,116,116,109,109,41,39,48,45,17,16,12,109,10,54,19,18,20,216,200,235,208,314,314,388,374,439,437,454]} 1. d4 {[%emt 0:00:04]} d5 {[%emt 0:00:01]} 2. c4 {[%emt 0:00:02]} e6 {[%emt 0:00:01]} 3. Nc3 {[%emt 0:00:01]} a6 {[%emt 0:00:02]} 4. cxd5 {[%emt 0:00:05]} exd5 {[%emt 0:00:01]} 5. Nf3 {[%emt 0:00:12]} Nf6 {[%emt 0:00:01]} 6. Bg5 {[%emt 0:00:01]} Be7 {[%emt 0:00:02]} 7. e3 {[%emt 0:00:02]} O-O {[%emt 0:00:04]} 8. Qc2 {[%emt 0:00:10]} h6 {[%emt 0:00:05]} 9. Bf4 {[%emt 0:00:10]} c6 {[%emt 0:00:34]} 10. h3 {[%emt 0:00:02]} Be6 {[%emt 0:00:06]} 11. Bd3 {[%emt 0:00:02]} Nbd7 {[%emt 0:00:03][%cal Bb8d7,Bd7b6,Bb6c4][%mdl 32]} 12. O-O {[%emt 0:00:06]} Rc8 {[%emt 0:00:03]} 13. Bf5 {[%emt 0:00:42]} Bxf5 {[%emt 0:00:13]} 14. Qxf5 {[%emt 0:00:02]} Nb6 {[%emt 0:00:11]} 15. Rfd1 {[%emt 0:00:17]} Qd7 {[%emt 0:00:11]} 16. Qd3 {[%emt 0:00:08]} Nc4 {[%emt 0:00:09]} 17. Qe2 {[%emt 0:00:05]} Bd6 {[%emt 0:00:11]} 18. Ne5 {[%emt 0:00:05]} Qe6 {[%emt 0:00:12]} (18... Qe7 $11) 19. Nxc4 $14 {[%emt 0:00:09]} dxc4 {[%emt 0:00:26]} ({Black should try} 19... Bxf4 $14 20. Na5 b6) 20. Bxd6 $16 {[%emt 0:00:03]} Qxd6 {[%emt 0:00:01]} 21. Qxc4 {[%emt 0:00:07]} Rfe8 {[%emt 0:00:03]} 22. Qc5 {[%emt 0:00:05]} Qe6 {[%emt 0:00:16]} 23. Qb6 {[%emt 0:00:05]} Re7 {[%emt 0:00:10]} 24. Na4 {[%emt 0:00:01]} Nd5 {[%emt 0:00:03]} 25. Qb3 {[%emt 0:00:08]} Qf5 {[%emt 0:00:23]} 26. Nc5 {[%emt 0:00:05][%cal Oe3e4] Strongly threatening e4!.} Qg6 {[%emt 0:00:08]} 27. e4 {[%emt 0:00:11]} (27. Nxb7 $2 Rb8 28. Qa3 Rbxb7 $19 (28... Rexb7 $2 29. b3 $19)) (27. Rac1 $16) 27... Nf4 $14 {[%emt 0:00:02][%csl Gf4][%cal Rg6g2]} 28. Qf3 $1 {[%emt 0:00:01]} (28. Nxb7 $2 Qxg2#) 28... Ne6 $1 {[%emt 0:00:05]} 29. Nxe6 {[%emt 0:00:07]} Qxe6 {[%emt 0:00:02]} 30. Re1 $36 {[%emt 0:00:06][%mdl 2048] White has the initiative.} Qc4 {[%emt 0:00:04]} (30... Rd7 $11 {keeps the balance.}) 31. Rad1 {[%emt 0:00:03]} ({White should play} 31. Qc3 $16 Qa4 32. e5) 31... Rd8 {[%emt 0:00:02]} 32. b3 {[%emt 0:00:13]} Qb4 {[%emt 0:00:04]} 33. Qd3 {[%emt 0:00:09]} c5 $2 {[%emt 0:00:03]} (33... Red7 $11) 34. d5 $18 {[%emt 0:00:02][%cal Bd4d5,Bd5d6][%mdl 32]} b5 {[%emt 0:00:03]} 35. d6 {[%emt 0:00:01]} Red7 {[%emt 0:00:01]} (35... Re5 {keeps fighting.} 36. Qe3 Re6) 36. e5 {[%emt 0:00:00]} Qf4 {[%emt 0:00:03]} 37. Qd5 {[%emt 0:00:07]} Qf5 {[%emt 0:00:04]} 38. Qxc5 {[%emt 0:00:03]} Qe6 {[%emt 0:00:05]} 1-0

[Event "European Women Blitz-ch 2024"]
[Site "Monaco"]
[Date "2025.01.10"]
[Round "3.12"]
[White "Zhukova, Natalia"]
[Black "Calzetta Ruiz, Monica"]
[Result "1-0"]
[Annotator "TA"]
[ECO "D40"]
[WhiteElo "2306"]
[BlackElo "2230"]
[PlyCount "83"]
[EventDate "2025.01.06"]
[EventType "swiss"]
[EventCountry "MNC"]
[SourceTitle "playchess.com"]
[Source "ChessBase"]
[SourceQuality "1"]
[TimeControl "180+2"]

{[%evp 17,83,14,24,0,0,-5,0,0,0,-12,-9,0,2,-30,-5,-6,0,-26,0,-37,10,0,15,0,17,41,37,-10,-12,-37,0,0,0,-146,5,0,23,-6,-11,-4,6,8,79,78,79,81,83,79,83,0,75,53,46,51,42,0,0,1,395,0,642,113,408,417,29966,12066,29963,5360]} 1. c4 {[%emt 0:00:01]} e6 {[%emt 0:00:02]} 2. Nc3 {[%emt 0:00:02]} d5 {[%emt 0:00:01]} 3. d4 {[%emt 0:00:01]} c5 {[%emt 0:00:04]} 4. e3 {[%emt 0:00:10]} Nc6 {[%emt 0:00:03]} 5. Nf3 {[%emt 0:00:01]} Nf6 {[%emt 0:00:01]} 6. a3 {[%emt 0:00:01]} a6 {[%emt 0:00:12]} 7. dxc5 {[%emt 0:00:03]} Bxc5 {[%emt 0:00:02]} 8. b4 {[%emt 0:00:01]} Be7 {[%emt 0:00:04]} 9. Bb2 {[%emt 0:00:02]} O-O {[%emt 0:00:11]} 10. Rc1 {[%emt 0:00:15]} dxc4 {[%emt 0:00:10]} 11. Bxc4 {[%emt 0:00:03]} Qxd1+ {[%emt 0:00:03]} 12. Rxd1 {[%emt 0:00:12]} b5 {[%emt 0:00:03]} 13. Bd3 {[%emt 0:00:10]} Bb7 {[%emt 0:00:04]} 14. O-O {[%emt 0:00:34][%cal Be1g1,Bg1f1,Bf1e2][%mdl 32]} Rfd8 {[%emt 0:00:02]} 15. Bb1 {[%emt 0:00:28]} Rxd1 {[%emt 0:00:19]} 16. Rxd1 {[%emt 0:00:01]} Rd8 {[%emt 0:00:01]} 17. Rc1 {[%emt 0:00:19]} Kf8 {[%emt 0:00:11]} 18. Kf1 {[%emt 0:00:04]} Ke8 {[%emt 0:00:01]} (18... a5 $15) 19. Ke2 {[%emt 0:00:02]} h6 {[%emt 0:00:40]} 20. Ne4 {[%emt 0:00:24]} a5 {[%emt 0:00:55]} (20... Nxe4 $5 21. Bxe4 Nd4+ 22. Bxd4 (22. exd4 Bxe4 23. g3 Bd5 $17) 22... Bxe4 $14) 21. Nxf6+ {[%emt 0:00:19]} gxf6 {[%emt 0:00:02]} 22. bxa5 {[%emt 0:00:07]} (22. Be4 $14 {is more appropriate.} Kd7 23. Bxc6+ Bxc6 24. bxa5) 22... Nxa5 $11 {[%emt 0:00:02]} 23. Nd2 {[%emt 0:00:18]} Nc4 {[%emt 0:00:04]} 24. Nxc4 {[%emt 0:00:03]} bxc4 {[%emt 0:00:01]} 25. Ke1 {[%emt 0:00:06]} (25. Ba2 $11) 25... Ba6 $2 {[%emt 0:00:01]} ({Black should try} 25... Bxg2 $17 {White must now prevent ...Rb8.} 26. Ba2 (26. Rxc4 $2 Rb8 $19) 26... Rb8) 26. Bc2 {[%emt 0:00:03]} Rb8 {[%emt 0:00:03]} 27. Ba4+ {[%emt 0:00:03]} Kf8 {[%emt 0:00:01]} 28. Rc2 {[%emt 0:00:01]} c3 {[%emt 0:00:14]} 29. Bxc3 {[%emt 0:00:01]} Bxa3 {[%emt 0:00:01]} (29... Bb7 $11 {remains equal.}) 30. Bxf6 $16 {[%emt 0:00:02]} Rb1+ {[%emt 0:00:02]} 31. Kd2 {[%emt 0:00:01]} Bb4+ {[%emt 0:00:01]} 32. Bc3 {[%emt 0:00:02]} Bd6 {[%emt 0:00:05]} 33. Bd4 {[%emt 0:00:03]} (33. Rb2 $16 Rxb2+ 34. Bxb2) 33... Rg1 {[%emt 0:00:05]} (33... Bb4+ $11 34. Bc3 Bxc3+ 35. Kxc3 h5) 34. Rc6 {[%emt 0:00:03]} Bb4+ {[%emt 0:00:02]} 35. Kc2 {[%emt 0:00:01]} Bb7 {[%emt 0:00:03]} 36. Rb6 {[%emt 0:00:01]} Be4+ {[%emt 0:00:02]} 37. Kb3 {[%emt 0:00:03]} Rb1+ $2 {[%emt 0:00:02][%mdl 8192]} (37... Ba5 $1 $11 {and Black is okay.} 38. Rb8+ Ke7) 38. Bb2 $2 {[%emt 0:00:03]} (38. Ka2 $18) 38... Be7 $2 {[%emt 0:00:03][%mdl 8192]} (38... Bxg2 $2 {perishes.} 39. Rxb4 Bd5+ 40. Ka3 $18) (38... Bd5+ $11 39. Kc2 Be4+ 40. Kb3 Bd5+) 39. f3 $2 {[%emt 0:00:02]} (39. Rb8+ $18 {is the precise move to win.} Bd8 40. Rxd8+ Ke7 41. Rd7+ Kf8 42. Ka3) 39... Bd5+ $2 {[%emt 0:00:02][%mdl 8192]} (39... Bf6 $16 40. Ka2 Rxb2+ (40... Bxb2 41. Rxb2 Rxb2+ 42. Kxb2 $16) 41. Rxb2 Bxb2) 40. Kc2 $18 {[%emt 0:00:00] aiming for Rb8+.} Rg1 {[%emt 0:00:09]} (40... Rxb2+ $18 41. Rxb2 (41. Kxb2 Bc5 $18) 41... Bd6) 41. Rb8+ {[%emt 0:00:02]} Bd8 {[%emt 0:00:00]} 42. Bf6 {[%emt 0:00:04]} (42. Rxd8+ $142 Ke7 43. Rd7+ Kf8 44. Bf6 Rxg2+ 45. Kc3 Kg8 46. Bb5 (46. Rd8+ Kh7 $18) 46... Be4 47. fxe4) 1-0

[Event "European Women Blitz-ch 2024"]
[Site "Monaco"]
[Date "2025.01.10"]
[Round "3.13"]
[White "Kazarian, Anna-Maja"]
[Black "Alexieva, Silvia"]
[Result "1-0"]
[Annotator "TA"]
[ECO "B48"]
[WhiteElo "2206"]
[BlackElo "2210"]
[PlyCount "47"]
[EventDate "2025.01.06"]
[EventType "swiss"]
[EventCountry "MNC"]
[SourceTitle "playchess.com"]
[Source "ChessBase"]
[SourceQuality "1"]
[TimeControl "180+2"]

{[%evp 11,47,30,41,6,20,11,32,15,31,16,63,-5,81,17,19,30,37,39,331,321,400,391,447,426,448,442,442,429,453,437,528,530,527,520,705,694,815,775]} 1. e4 {[%emt 0:00:01]} c5 {[%emt 0:00:00]} 2. Nf3 {[%emt 0:00:01]} e6 {[%emt 0:00:01]} 3. d4 {[%emt 0:00:01]} cxd4 {[%emt 0:00:01]} 4. Nxd4 {[%emt 0:00:01]} Nc6 {[%emt 0:00:01]} 5. Nc3 {[%emt 0:00:01]} Qc7 {[%emt 0:00:01]} 6. Be3 {[%emt 0:00:02]} a6 {[%emt 0:00:01]} 7. g4 {[%emt 0:00:01]} Nxd4 {[%emt 0:00:07]} 8. Qxd4 {[%emt 0:00:05]} b5 $1 {[%emt 0:00:05]} 9. O-O-O {[%emt 0:00:05] White is slightly better.} Bb7 {[%emt 0:00:00]} 10. Kb1 {[%emt 0:00:17]} Rc8 {[%emt 0:00:01]} (10... Nf6 $11 {is superior.}) 11. a3 {[%emt 0:00:17]} (11. Bf4 $1 $14 Qc6 12. a3) 11... Ne7 {[%emt 0:00:03]} (11... Nf6 $11) 12. f4 {[%emt 0:00:23] White is more active.} ({White should try} 12. Qd2 $16 {[%cal Of1b5] Hoping for Bxb5!} d5 13. Bg2) 12... Nc6 $11 {[%emt 0:00:01]} 13. Qd2 {[%emt 0:00:10][%cal Oe3b6] Bb6! would now be deadly.} b4 {[%emt 0:00:08]} 14. Na4 $36 {[%emt 0:00:12][%mdl 2048] White has the initiative.} (14. Nb5 {simplifies} axb5 15. Bb6 Qd6 16. Qxd6 Bxd6 17. Rxd6 Nb8 18. Bd3) 14... bxa3 $2 {[%emt 0:00:11][%mdl 8192] [#] Black cannot hold the game after this.} ({Black should play} 14... Nb8 $14 15. Bd3 (15. axb4 $2 Bxe4 16. Nb6 Bxh1 $19) 15... bxa3) 15. Bb6 $1 $18 {[%emt 0:00:05]} a2+ {[%emt 0:00:20]} 16. Ka1 $1 {[%emt 0:00:06]} Qd6 {[%emt 0:00:16]} 17. Qxd6 {[%emt 0:00:08] White is clearly winning.} Bxd6 {[%emt 0:00:01]} 18. Rxd6 {[%emt 0:00:01][%cal Oa4c5] Nc5! is the strong threat.} Nb4 {[%emt 0:00:02]} 19. Nc3 {[%emt 0:00:16]} h5 {[%emt 0:00:32]} 20. g5 {[%emt 0:00:08]} ({Weaker is} 20. Nxa2 Nxc2+ 21. Kb1 Bxe4 $19) 20... f5 {[%emt 0:00:21]} 21. gxf6 {[%emt 0:00:06]} (21. Nxa2 Nxc2+ 22. Kb1 Bxe4 $11) 21... gxf6 {[%emt 0:00:01]} 22. Rg1 {[%emt 0:00:13]} ({Inferior is} 22. Nxa2 Nxc2+ 23. Kb1 Bxe4 $14) 22... Ke7 {[%emt 0:00:09]} 23. Rd2 {[%emt 0:00:03]} Rhg8 {[%emt 0:00:07] [#] Prevents Rg7+} 24. Bc5+ $1 {[%emt 0:00:18][%mdl 512] Weighted Error Value: White=0.14 (very precise) /Black=0.62.  Loses game:     	---       	Black=1      Mistake:       	White=2     	Black=2      Inaccurate:     	---       	Black=1      OK:         	White=5     	Black=4      Strong:       	White=2     	Black=1} 1-0